fUSD/lending_fUSD_20241003
["ID","MTS","AMOUNT","RATE_DAILY","PERIOD"]
[339764202,1727965834947,-1111.77992825,0.00010899,2]
[339764203,1727965834956,-1111.77992825,0.00010899,2]
[339764204,1727965834966,-1111.77992825,0.00010899,2]
[339764205,1727965834975,-5358.15730304,0.000109,2]
[339764206,1727965834984,-352.53552434,0.000109,2]
[339764207,1727965834993,-1111.77992825,0.000109,2]
[339764209,1727965835002,-4381.5004,0.000109,2]
[339764211,1727965835011,-159.59588203,0.000109,2]
[339764212,1727965835020,-789.02029387,0.000109,2]
[339764214,1727965835029,-1000.0,0.00010945,2]
[339764216,1727965835038,-1000.0,0.00010945,2]
[339764218,1727965835047,-1000.0,0.00010945,2]
[339764219,1727965835057,-1000.0,0.00010945,2]
[339764221,1727965835066,-1000.0,0.00010945,2]
[339764223,1727965835075,-1000.0,0.00010945,2]
[339764225,1727965835084,-1000.0,0.00010945,2]
[339764227,1727965835093,-1000.0,0.00010945,2]
[339764229,1727965835103,-1000.0,0.00010945,2]
[339764230,1727965835111,-608.2078,0.00010945,2]
[339764232,1727965835121,-167.24,0.00010959,2]
[339764234,1727965835130,-269.59,0.00010959,2]
[339764236,1727965835139,-166.56,0.00010959,2]
[339764238,1727965835148,-250.0,0.00010959,2]
[339764240,1727965835158,-710.32,0.00010959,2]
[339764242,1727965835168,-263.21,0.00010959,2]
[339764244,1727965835177,-500.0,0.00010973,2]
[339764245,1727965835188,-430.53333961,0.00010973,2]
[339764246,1727965835197,-200.0,0.00010973,2]
[339764247,1727965835206,-511.8498062,0.00010973,2]
[339764248,1727965835216,-16480.77902615,0.00010986,2]
[339764249,1727965835227,-2444.57065655,0.00010986,2]
[339764250,1727965835238,-818.82444517,0.00010986,2]
[339764251,1727965835249,-867.99467088,0.00010986,2]
[339764252,1727965835259,-2019.02952842,0.00010986,2]
[339764253,1727965835271,-4666.64814685,0.00010986,2]
[339764254,1727965835505,-19846.33206671,0.00010986,2]
[339764255,1727965835516,-1571.8,0.00010986,2]
[339764256,1727965835527,-662.54834617,0.00010986,2]
[339764258,1727965838219,-500.0,0.00010973,2]
[339764259,1727965838229,-3283.92370404,0.00010986,2]
[339764261,1727965838240,-676.9512002,0.00010986,2]
[339764262,1727965838251,-1152.06794487,0.00010986,2]
[339764263,1727965838263,-522.54170576,0.00010986,2]
[339764265,1727965838278,-24724.98855823,0.00010986,2]
[339764267,1727965838288,-152.73,0.0001099,2]
[339764268,1727965838301,-250000.0,0.0001099,2]
[339764269,1727965838311,-152.73,0.0001099,2]
[339764270,1727965838328,-2524.9641019,0.00010994,2]
[339764271,1727965838338,-276.768,0.00010999,2]
[339764272,1727965838347,-810.0,0.00010999,2]
[339764273,1727965838357,-934.0,0.00010999,2]
[339764274,1727965838366,-559.0,0.00010999,2]
[339764275,1727965838377,-1905.0,0.00010999,2]
[339764276,1727965838386,-599.62,0.00010999,2]
[339764277,1727965838395,-1910.0,0.00010999,2]
[339764278,1727965838405,-807.0,0.00010999,2]
[339764279,1727965838415,-3351.0,0.00010999,2]
[339764280,1727965838424,-1082.0,0.00010999,2]
[339764281,1727965838433,-450.107,0.00010999,2]
[339764282,1727965838444,-1265.888,0.00010999,2]
[339764283,1727965838454,-626.933,0.00010999,2]
[339764284,1727965838464,-218.84098603,0.00010999,2]
[339764285,1727965838473,-272.48673036,0.00010999,2]
[339764286,1727965838483,-500.0,0.00010999,2]
[339764287,1727965838493,-500.0,0.00010999,2]
[339764288,1727965838505,-500.0,0.00010999,2]
[339764289,1727965838514,-500.0,0.00010999,2]
[339764290,1727965838523,-500.0,0.00010999,2]
[339764291,1727965838532,-500.0,0.00010999,2]
[339764292,1727965838542,-283.57020479,0.00010999,2]
[339764293,1727965838552,-447.22804628,0.00010999,2]
[339764294,1727965838561,-500.0,0.00010999,2]
[339764295,1727965838577,-500.0,0.00010999,2]
[339764296,1727965838587,-500.0,0.00010999,2]
[339764297,1727965838596,-579.0,0.00010999,2]
[339764298,1727965838605,-660481.07081531,0.00011,2]
[339764299,1727965838615,-1097.9843424,0.00011,2]
[339764300,1727965838627,-798735.88846153,0.00011,2]
[339764301,1727965838638,-459.01463883,0.00011,2]
[339764302,1727965838654,-800.67916805,0.00011,2]
[339764303,1727965838665,-12614.80000001,0.00011,2]
[339764304,1727965838676,-3353.94450525,0.00011,2]
[339764305,1727965838687,-667.24633407,0.00011,2]
[339764306,1727965838698,-7279.41342549,0.00011,2]
[339764308,1727965838710,-31499.12898451,0.00011,2]
[339764309,1727965838725,-631.83114,0.00011,2]
[339764310,1727965838736,-3704.1009641,0.00011,2]
[339764311,1727965838747,-562.16811461,0.00011,2]
[339764312,1727965838759,-794.86802,0.00011,2]
[339764313,1727965838770,-44775.30358361,0.00011,2]
[339764314,1727965838782,-2146.17360397,0.00011,2]
[339764315,1727965838801,-3843.61361225,0.00011,2]
[339764316,1727965838813,-1720.75393469,0.00011,2]
[339764317,1727965838886,-1.37684031,0.00011,2]
[339764318,1727965838898,-838.63282662,0.00011,2]
[339764319,1727965838909,-5878.35106938,0.00011,2]
[339764320,1727965838920,-19099.21,0.00011,2]
[339764321,1727965838931,-6057.23386798,0.00011,2]
[339764322,1727965838942,-13271.56862149,0.00011,2]
[339764323,1727965838953,-24654.16122351,0.00011,2]
[339764324,1727965838964,-22243.24876,0.00011,2]
[339764325,1727965838979,-6298.56466637,0.00011,2]
[339764326,1727965838991,-5974.7917284,0.00011,2]
[339764327,1727965839002,-5292.01014987,0.00011,2]
[339764328,1727965839013,-12092.2,0.00011,2]
[339764329,1727965839026,-705.09885338,0.00011,2]
[339764330,1727965839038,-11397.85447334,0.00011,2]
[339764331,1727965839051,-135717.78159402,0.00011,2]
[339764335,1727965840309,-767.4305396,0.00010721,2]
[339764336,1727965840452,-380.5694604,0.00010721,2]
[339764337,1727965840462,-1004.5028243,0.00011,2]
[339764338,1727965840474,-406.289999,0.00011,2]
[339764339,1727965840485,-626.55620286,0.00011,2]
[339764341,1727965840609,-300.060222,0.00011,2]
[339764369,1727965843946,-1319.3860181,0.00011,2]
[339764370,1727965843989,-11506.722,0.00010721,2]
[339764411,1727965846444,-264.48498216,0.00010721,2]
[339764412,1727965846481,-1735.79301784,0.00010721,2]
[339764413,1727965846490,-3682.39134748,0.00011,2]
[339765534,1727966173501,1000.0,9.999e-05,2]
[339765535,1727966219144,572.6,0.00010183,2]
[339765536,1727966309608,209.64,9.999e-05,2]
[339765537,1727966359119,442.53,8.219e-05,2]
[339765538,1727966397251,250.0,0.00010084,2]
[339765539,1727966679813,200.0,0.00010074,2]
[339765540,1727966718832,150.0,0.00010088,2]
[339765541,1727966718856,14.14,0.00010088,2]
[339765542,1727966868099,2907.43,0.00010176,2]
[339765543,1727966896484,150.0,0.00010176,2]
[339765544,1727966896508,150.0,0.00010176,2]
[339765545,1727966896528,150.0,0.00010176,2]
[339765546,1727966896549,150.0,0.00010176,2]
[339765547,1727966896570,150.0,0.00010176,2]
[339765548,1727966896590,150.0,0.00010176,2]
[339765549,1727966896610,150.0,0.00010176,2]
[339765550,1727966896630,150.0,0.00010176,2]
[339765551,1727966896650,150.0,0.00010176,2]
[339765552,1727966896674,150.0,0.00010176,2]
[339765553,1727966896694,150.0,0.00010176,2]
[339765554,1727966896714,150.0,0.00010176,2]
[339765555,1727966896735,150.0,0.00010176,2]
[339765556,1727966896759,150.0,0.00010176,2]
[339765557,1727966896779,150.0,0.00010176,2]
[339765558,1727966896799,47.51717408,0.00010176,2]
[339765559,1727966906661,150.0,8.275e-05,2]
[339765560,1727966906683,150.0,8.275e-05,2]
[339765561,1727966906705,144.38,8.275e-05,2]
[339765562,1727966962430,-248.69,0.00010234,2]
[339765563,1727966962631,-1.31,0.00010234,2]
[339765575,1727967031425,-387.69311724,0.00010276,2]
[339765576,1727967031434,-347.44,0.00010276,2]
[339765577,1727967031444,-119.67572474,0.00010539,2]
[339765578,1727967031576,-324.70427526,0.00010539,2]
[339765579,1727967031585,-1049.62402509,0.0001078,2]
[339765580,1727967031599,-1423.4902558,0.0001078,2]
[339765581,1727967031608,-436.7518,0.0001089,2]
[339765582,1727967031617,-3863.65698968,0.00010899,2]
[339765583,1727967031629,-256.41264469,0.00010899,2]
[339765584,1727967031641,-415.98592689,0.00010899,2]
[339765585,1727967031652,-45569.19753874,0.00010899,2]
[339765586,1727967031662,-150.0,0.00010899,2]
[339765587,1727967031671,-58557.0,0.000109,2]
[339765588,1727967031680,-1000.0,0.000109,2]
[339765589,1727967031689,-3785.4933,0.000109,2]
[339765590,1727967031699,-1322.98816194,0.000109,2]
[339765591,1727967031711,-201.50783116,0.000109,2]
[339765593,1727967031720,-163.67,0.00010959,2]
[339765594,1727967031729,-215.67,0.00010959,2]
[339765595,1727967031738,-166.56,0.00010959,2]
[339765596,1727967031749,-233.74,0.00010959,2]
[339765597,1727967031758,-194.78,0.00010959,2]
[339765598,1727967031767,-162.32,0.00010959,2]
[339765599,1727967031777,-811.62,0.00010959,2]
[339765600,1727967031787,-210.568,0.00010959,2]
[339765601,1727967031796,-500.0,0.00010973,2]
[339765602,1727967031807,-500.0,0.00010973,2]
[339765603,1727967031819,-153.83,0.0001099,2]
[339765604,1727967031828,-3577.2784828,0.00010994,2]
[339765605,1727967031838,-32340.4461998,0.00010994,2]
[339765606,1727967031850,-2012.4920395,0.00010994,2]
[339765607,1727967031859,-6121.0822942,0.00010994,2]
[339765608,1727967031868,-3363.2937829,0.00010994,2]
[339765609,1727967031877,-1436.0721044,0.00010994,2]
[339765610,1727967031886,-1297.0,0.00010999,2]
[339765611,1727967031896,-626.0,0.00010999,2]
[339765612,1727967031908,-1264.0,0.00010999,2]
[339765613,1727967031918,-449.0,0.00010999,2]
[339765614,1727967031928,-150.0,0.00010999,2]
[339765615,1727967031938,-934.0,0.00010999,2]
[339765616,1727967031949,-559.0,0.00010999,2]
[339765617,1727967031959,-810.0,0.00010999,2]
[339765618,1727967031968,-1082.0,0.00010999,2]
[339765619,1727967031977,-1905.0,0.00010999,2]
[339765620,1727967031987,-554.0,0.00010999,2]
[339765621,1727967031996,-3351.0,0.00010999,2]
[339765622,1727967032006,-807.0,0.00010999,2]
[339765623,1727967032015,-1910.0,0.00010999,2]
[339765624,1727967032025,-150.0,0.00010999,2]
[339765625,1727967032034,-150.0,0.00010999,2]
[339765626,1727967032045,-5874.0,0.00010999,2]
[339765627,1727967032055,-150.0,0.00010999,2]
[339765628,1727967032064,-13507.0,0.00010999,2]
[339765629,1727967032073,-1148.0,0.00010999,2]
[339765630,1727967032082,-1000.0,0.00010999,2]
[339765631,1727967032091,-1000.0,0.00010999,2]
[339765632,1727967032103,-1000.0,0.00010999,2]
[339765633,1727967032112,-1000.0,0.00010999,2]
[339765634,1727967032122,-1000.0,0.00010999,2]
[339765635,1727967032131,-1000.0,0.00010999,2]
[339765636,1727967032140,-1000.0,0.00010999,2]
[339765637,1727967032149,-1000.0,0.00010999,2]
[339765638,1727967032158,-1000.0,0.00010999,2]
[339765639,1727967032167,-1000.0,0.00010999,2]
[339765640,1727967032177,-1000.0,0.00010999,2]
[339765641,1727967032186,-1000.0,0.00010999,2]
[339765642,1727967032196,-1000.0,0.00010999,2]
[339765643,1727967032206,-1000.0,0.00010999,2]
[339765644,1727967032215,-500.0,0.00010999,2]
[339765645,1727967032225,-500.0,0.00010999,2]
[339765646,1727967032234,-500.0,0.00010999,2]
[339765647,1727967032243,-588.26893947,0.00010999,2]
[339765648,1727967032254,-500.0,0.00010999,2]
[339765649,1727967032263,-500.0,0.00010999,2]
[339765650,1727967032272,-500.0,0.00010999,2]
[339765651,1727967032281,-301.35555529,0.00010999,2]
[339765652,1727967032290,-266.43095162,0.00010999,2]
[339765653,1727967032299,-500.0,0.00010999,2]
[339765654,1727967032308,-500.0,0.00010999,2]
[339765655,1727967032318,-500.0,0.00010999,2]
[339765656,1727967032327,-500.0,0.00010999,2]
[339765657,1727967032336,-500.0,0.00010999,2]
[339765658,1727967032346,-276.64309517,0.00010999,2]
[339765659,1727967032355,-572.0,0.00011,2]
[339765660,1727967032364,-38637.27273428,0.00011,2]
[339765661,1727967032889,-6817.17459968,0.00011,2]
[339765662,1727967032900,-3949.7614307,0.00011,2]
[339765663,1727967032912,-7914.48,0.00011,2]
[339765664,1727967032923,-857.30470671,0.00011,2]
[339765665,1727967032934,-2414.07668284,0.00011,2]
[339765666,1727967032945,-726.67746112,0.00011,2]
[339765667,1727967032963,-1152.51247936,0.00011,2]
[339765668,1727967032974,-7399.01756245,0.00011,2]
[339765669,1727967032984,-2300.0,0.00011,2]
[339765670,1727967032995,-4993.424,0.00011,2]
[339765671,1727967033007,-2300.0,0.00011,2]
[339765672,1727967033018,-926.43635877,0.00011,2]
[339765688,1727967037692,-172.53,0.00010959,2]
[339765689,1727967037704,-2382.7720868,0.00011,2]
[339765690,1727967037722,-4453.20603293,0.00011,2]
[339765691,1727967037733,-5364.2574944,0.00011,2]
[339765692,1727967037744,-2973.57485311,0.00011,2]
[339765695,1727967037781,-473346.96170986,0.00011,2]
[339765696,1727967037790,-988.18590816,0.00011,2]
[339765697,1727967037800,-204096.58552063,0.00011,2]
[339765698,1727967037811,-484.0774728,0.00011,2]
[339765699,1727967037903,-2000.0,0.00011,2]
[339765700,1727967037914,-5146.02669942,0.00011,2]
[339765723,1727967039441,-1050.1,0.00011,2]
[339765724,1727967039453,-950.0,0.00011,2]
[339765726,1727967039464,-2529.38990876,0.00011,2]
[339765728,1727967039476,-1279.15335669,0.00011,2]
[339765729,1727967039487,-1156.2,0.00011,2]
[339765730,1727967039497,-2689.99555988,0.00011,2]
[339765732,1727967039509,-333.81892786,0.00011,2]
[339765733,1727967039531,-874.11182625,0.00011,2]
[339765734,1727967039542,-3361.07830627,0.00011,2]
[339765735,1727967039553,-600.70263248,0.00011,2]
[339765736,1727967039564,-116457.35725128,0.00011,2]
[339765737,1727967039576,-793.38664399,0.00011,2]
[339765738,1727967039587,-35597.93891659,0.00011,2]
[339765739,1727967039607,-460.63094984,0.00011,2]
[339765740,1727967039618,-1041.85,0.00011,2]
[339765741,1727967039629,-425.97427235,0.00011,2]
[339765742,1727967039640,-675.37562521,0.00011,2]
[339765743,1727967039650,-575.08359065,0.00011,2]
[339765744,1727967039662,-351.07257844,0.00011,2]
[339765745,1727967039674,-1028.443,0.00011,2]
[339765746,1727967039685,-1182.8,0.00011,2]
[339765747,1727967039696,-3084.36909757,0.00011,2]
[339765748,1727967039712,-1195.16112444,0.00011,2]
[339765749,1727967039724,-9643.92039372,0.00011,2]
[339765750,1727967039734,-16040.5,0.00011,2]
[339765751,1727967039746,-3419.34771859,0.00011,2]
[339765752,1727967039758,-1636.7999998,0.00011,2]
[339765753,1727967039769,-14769.35656793,0.00011,2]
[339765754,1727967039789,-11155.02945712,0.00011,2]
[339765755,1727967039821,-10725.72993336,0.00011,2]
[339765756,1727967039835,-655.39084269,0.00011,2]
[339765758,1727967039848,-470.59406132,0.00011,2]
[339765761,1727967039859,-582.83643837,0.00011,2]
[339765763,1727967039871,-1979.79404271,0.00011,2]
[339765766,1727967039895,-150.0,0.00010999,2]
[339765768,1727967039905,-384770.21321784,0.00011,2]
[339765770,1727967039916,-25223.42161428,0.00011,2]
[339765773,1727967039927,-103593.22199597,0.00011,2]
[339765775,1727967039938,-313.78799327,0.00011,2]
[339765777,1727967039949,-502.27957439,0.00011,2]
[339765779,1727967039961,-271.37002482,0.00011,2]
[339765782,1727967039972,-473.28023069,0.00011,2]
[339765784,1727967039983,-2485.43080663,0.00011,2]
[339765803,1727967042547,-1016.1,0.00011,2]
[339765805,1727967042559,-1308.00000413,0.00011,2]
[339765807,1727967042570,-858.6849167,0.00011,2]
[339765809,1727967042581,-7371.9937438,0.00011,2]
[339765810,1727967042592,-18315.62379713,0.00011,2]
[339765811,1727967042608,-4869.92671002,0.00011,2]
[339765812,1727967042619,-23521.76724492,0.00011,2]
[339765813,1727967042630,-935.21484251,0.00011,2]
[339765814,1727967042643,-316.220239,0.00011,2]
[339765815,1727967042653,-456.47,0.00011,2]
[339765816,1727967042664,-1154.91479908,0.00011,2]
[339765817,1727967042676,-478.80000015,0.00011,2]
[339765818,1727967042687,-475.02237546,0.00011,2]
[339765819,1727967042699,-5583.5631858,0.00011,2]
[339765820,1727967042717,-584485.89053351,0.00011,2]
[339765821,1727967042729,-12886.9910005,0.00011,2]
[339765822,1727967042770,-5976.22869519,0.00011,2]
[339765823,1727967042782,-776.06146747,0.00011,2]
[339765824,1727967042816,-5719.8045,0.00011,2]
[339765825,1727967042827,-2240.0,0.00011,2]
[339765826,1727967042838,-3695.6042886,0.00011,2]
[339765827,1727967042859,-541.92539657,0.00011,2]
[339765829,1727967042870,-697.68583,0.00011,2]
[339765830,1727967042881,-720.02828238,0.00011,2]
[339765832,1727967043401,-502.49912,0.00011,2]
[339765833,1727967043412,-5294.78253849,0.00011,2]
[339765843,1727967045519,-150.0,0.00010999,2]
[339765844,1727967045528,-571.0,0.00011,2]
[339765845,1727967045539,-258792.12280017,0.00011,2]
[339765848,1727967049295,-619.91234272,0.00010449,2]
[339765850,1727967186777,-840.0,0.00010306,2]
[339765851,1727967237765,-436.9561,0.00010799,2]
[339765852,1727967237786,-369.2051,0.00010894,2]
[339765853,1727967237808,-813.6131,0.00010894,2]
[339765854,1727967237831,-300.0,0.00010898,2]
[339765855,1727967237854,-3191.7325,0.00010899,2]
[339765856,1727967237877,-1002.5141,0.00010899,2]
[339765857,1727967237899,-8012.5251,0.00010899,2]
[339765858,1727967237924,-497.2572,0.00010899,2]
[339765859,1727967237945,-1000.0,0.000109,2]
[339765860,1727967237966,-869.2008,0.000109,2]
[339765861,1727967237987,-349.6297,0.000109,2]
[339765862,1727967238013,-413.078,0.000109,2]
[339765863,1727967238034,-163.92724834,0.000109,2]
[339765864,1727967238056,-618.6766,0.000109,2]
[339765865,1727967238079,-173.1161,0.000109,2]
[339765866,1727967238103,-1474.6495,0.000109,2]
[339765867,1727967238128,-195.94318296,0.000109,2]
[339765868,1727967238153,-264.31339832,0.000109,2]
[339765869,1727967238250,-628.60390416,0.000109,2]
[339765870,1727967238272,-1082.0,0.00010999,2]
[339765871,1727967238292,-150.0,0.00010999,2]
[339765872,1727967238312,-150.0,0.00010999,2]
[339765873,1727967238335,-150.0,0.00010999,2]
[339765874,1727967238360,-150.0,0.00010999,2]
[339765875,1727967238380,-150.0,0.00010999,2]
[339765876,1727967238402,-201.916,0.00010999,2]
[339765877,1727967238423,-200.628,0.00010999,2]
[339765878,1727967238444,-1412.60561762,0.00010999,2]
[339765879,1727967238468,-1000.0,0.00010999,2]
[339765880,1727967238489,-121.9087486,0.00010999,2]
[339765881,1727967241516,-28.0912514,0.00010999,2]
[339765882,1727967241540,-1000.0,0.00010999,2]
[339765883,1727967241563,-1000.0,0.00010999,2]
[339765884,1727967241585,-1000.0,0.00010999,2]
[339765885,1727967241608,-1000.0,0.00010999,2]
[339765886,1727967241631,-222.0,0.00010999,2]
[339765887,1727967241652,-1000.0,0.00010999,2]
[339765888,1727967241674,-249.29226925,0.00010999,2]
[339765889,1727967241699,-500.0,0.00010999,2]
[339765890,1727967241722,-500.0,0.00010999,2]
[339765891,1727967241746,-502.16234457,0.00010999,2]
[339765892,1727967241772,-387.05208979,0.00010999,2]
[339765893,1727967241795,-481.67204763,0.00010999,2]
[339765894,1727967241820,-500.0,0.00010999,2]
[339765895,1727967241844,-500.0,0.00010999,2]
[339765896,1727967241867,-500.0,0.00010999,2]
[339765897,1727967241890,-500.0,0.00010999,2]
[339765898,1727967241912,-511.0,0.00011,2]
[339765899,1727967241936,-39618.72999736,0.00011,2]
[339765900,1727967242134,-50000.0,0.00011,2]
[339765901,1727967270079,-465.47,0.00010796,2]
[339765902,1727967270100,-150.23271,0.0001089,2]
[339765903,1727967270122,-13235.29729,0.000109,2]
[339765904,1727967287481,300.0,0.000102,3]
[339765905,1727967297413,-600.0,0.000103,3]
[339765906,1727967298877,-900.0,0.000104,3]
[339765907,1727967300560,-1300.0,0.000105,3]
[339765908,1727967301067,-441.51272414,0.000106,3]
[339765909,1727967343050,3875.05838549,0.00010125,2]
[339765910,1727967343079,16244.66161451,0.00010125,2]
[339765911,1727967413769,150.0,8.219e-05,2]
[339765912,1727967413790,150.0,8.219e-05,2]
[339765913,1727967413815,150.0,8.219e-05,2]
[339765914,1727967413835,2.74,8.219e-05,2]
[339765915,1727967515324,16802.06633811,0.000108,30]
[339765916,1727967516267,150.0,0.0001003,2]
[339765917,1727967516290,100.0,0.0001003,2]
[339765918,1727967558140,150.0,0.00010013,2]
[339765919,1727967558162,150.0,0.00010013,2]
[339765920,1727967558183,89.02,0.00010013,2]
[339765921,1727967764514,156.23,9.979e-05,2]
[339765922,1727967811638,150.0,9.984e-05,2]
[339765923,1727967811660,150.0,9.984e-05,2]
[339765924,1727967811681,150.0,9.984e-05,2]
[339765925,1727967811702,150.0,9.984e-05,2]
[339765926,1727967811723,150.0,9.984e-05,2]
[339765927,1727967811744,150.0,9.984e-05,2]
[339765928,1727967811764,100.0,9.984e-05,2]
[339765929,1727967908021,150.0,9.888e-05,2]
[339765930,1727967908347,150.0,0.00010071,2]
[339765931,1727967912003,150.0,9.888e-05,2]
[339765932,1727967912382,150.0,0.00010107,2]
[339765933,1727967920339,150.0,9.888e-05,2]
[339765934,1727967921258,821.51,9.998e-05,2]
[339765935,1727967932956,150.0,9.888e-05,2]
[339765936,1727968032320,150.0,8.219e-05,2]
[339765937,1727968032343,150.0,8.219e-05,2]
[339765938,1727968032364,150.0,8.219e-05,2]
[339765939,1727968032386,8.67,8.219e-05,2]
[339765940,1727968072548,150.0,9.975e-05,2]
[339765941,1727968072572,44.51,9.975e-05,2]
[339765942,1727968075216,105.49,9.93e-05,2]
[339765943,1727968075237,144.51,9.93e-05,2]
[339765944,1727968087963,150.0,0.000102,3]
[339765945,1727968087985,50.0,0.000102,3]
[339765950,1727968231615,-150.0,0.00010254,2]
[339765951,1727968231624,-500.0,0.000103,3]
[339765952,1727968231634,-150.0,0.00010327,2]
[339765953,1727968231644,-800.0,0.000104,3]
[339765954,1727968231654,-150.0,0.00010437,2]
[339765955,1727968231663,-619.91234272,0.00010449,2]
[339765956,1727968231673,-458.67,0.00010472,2]
[339765957,1727968231683,-1100.0,0.000105,3]
[339765958,1727968231692,-300.0,0.00010546,2]
[339765959,1727968231701,-150.0,0.00010547,2]
[339765960,1727968231710,-1503.05,0.00010547,2]
[339765961,1727968231728,-1320.14,0.00010547,2]
[339765962,1727968231738,-150.99,0.00010547,2]
[339765963,1727968231747,-1400.0,0.000106,3]
[339765964,1727968231756,-150.0,0.0001062,2]
[339765965,1727968231766,-847.8,0.00010698,2]
[339765966,1727968231776,-1174.18,0.00010698,2]
[339765967,1727968231785,-499.99,0.00010698,2]
[339765968,1727968231795,-52023.82,0.00010699,2]
[339765969,1727968231804,-6988.1238,0.00010699,2]
[339765970,1727968231813,-200.0,0.000107,3]
[339765971,1727968231824,-150.0,0.00010767,2]
[339765972,1727968231833,-214.5624,0.000108,2]
[339765973,1727968231843,-200.0,0.000108,3]
[339765974,1727968231852,-150.0,0.00010803,2]
[339765975,1727968231862,-1682.2527,0.00010803,2]
[339765976,1727968231871,-2113.7809,0.00010803,2]
[339765977,1727968231881,-9654.08681506,0.0001089,2]
[339765978,1727968231890,-1015.2583,0.00010894,2]
[339765979,1727968231900,-2511.0,0.00010899,2]
[339765980,1727968231910,-176.34886461,0.00010899,2]
[339765981,1727968232049,-949.9773,0.000109,2]
[339765982,1727968232069,-4010.1616,0.000109,2]
[339765983,1727968232078,-5207.528,0.000109,2]
[339765984,1727968232087,-69896.45921,0.000109,2]
[339765985,1727968232098,-2400.0,0.000109,2]
[339765986,1727968232109,-433.2501,0.000109,2]
[339765987,1727968232118,-423.3,0.000109,2]
[339765988,1727968232127,-167.49616479,0.000109,2]
[339765989,1727968232138,-150.99,0.000109,2]
[339765990,1727968232147,-533.95,0.000109,2]
[339765991,1727968232157,-200.0,0.000109,3]
[339765992,1727968232167,-207.61965061,0.000109,2]
[339765993,1727968232176,-792.60427248,0.000109,2]
[339765994,1727968232186,-945.04067048,0.000109,2]
[339765995,1727968232195,-5874.0,0.0001091,2]
[339765996,1727968232206,-13507.0,0.0001091,2]
[339765997,1727968232219,-150.0,0.0001091,2]
[339765998,1727968232229,-1148.0,0.0001091,2]
[339765999,1727968232239,-165.57,0.00010959,2]
[339766000,1727968232249,-207.81,0.00010959,2]
[339766001,1727968232259,-250.0,0.00010959,2]
[339766002,1727968232268,-3882.29,0.00010959,2]
[339766003,1727968232278,-607.33,0.00010959,2]
[339766004,1727968232287,-293.452,0.00010962,2]
[339766005,1727968232297,-167.161,0.00010962,2]
[339766006,1727968232306,-500.0,0.00010973,2]
[339766007,1727968232315,-501.97786434,0.00010973,2]
[339766008,1727968232325,-500.0,0.00010973,2]
[339766009,1727968232334,-150.0,0.00010986,2]
[339766010,1727968232344,-150.0,0.00010986,2]
[339766011,1727968232353,-151.04,0.0001099,2]
[339766012,1727968232362,-216.74872702,0.0001099,2]
[339766013,1727968232371,-151.04,0.0001099,2]
[339766014,1727968232381,-6235.5090233,0.00010994,2]
[339766015,1727968232390,-1944.949814,0.00010994,2]
[339766016,1727968232400,-953.0381024,0.00010994,2]
[339766017,1727968232409,-30198.6340508,0.00010994,2]
[339766018,1727968232418,-1297.0,0.00010999,2]
[339766019,1727968232428,-449.0,0.00010999,2]
[339766020,1727968232436,-1264.0,0.00010999,2]
[339766021,1727968232445,-626.0,0.00010999,2]
[339766022,1727968232455,-150.0,0.00010999,2]
[339766023,1727968232465,-934.0,0.00010999,2]